[Event "Klubbmästerskap 2025 Torsdagar"]
[Site "Linköping, Sweden"]
[Date "2025.02.06"]
[Round "3.8"]
[White "Qwarfort, Fredrik"]
[Black "Davidsson, Asker"]
[Result "1-0"]
[TimeControl "90 min + 30 sec/move"]
[WhiteElo "1826"]
[BlackElo "1823"]

1. d4 {[%clk 01:30:57]} {[%emt 00:00:02]} d5 {[%clk 01:30:20]} {[%emt
00:00:40]} 2. c4 {[%emt 00:00:26]} e6 {[%clk 01:30:17]} {[%emt 00:00:15]} 3.
Nc3 {[%clk 01:31:36]} {[%emt 00:00:13]} a6 {[%clk 01:29:55]} {[%emt 00:00:51]}
4. e3 {[%clk 01:31:18]} {[%emt 00:00:48]} Nf6 {[%clk 01:30:04]} {[%emt
00:00:22]} 5. Nf3 {[%clk 01:31:39]} {[%emt 00:00:09]} Bd6 {[%clk 01:29:18]}
{[%emt 00:01:16]} 6. Bd3 {[%clk 01:31:46]} {[%emt 00:00:21]} dxc4 {[%clk
01:27:18]} {[%emt 00:02:31]} 7. Bxc4 {[%clk 01:32:11]} {[%emt 00:00:05]} b5
{[%clk 01:27:34]} {[%emt 00:00:14]} 8. Bd3 {[%clk 01:32:13]} {[%emt 00:00:28]}
Bb7 {[%clk 01:25:44]} {[%emt 00:02:21]} 9. a3 {[%clk 01:31:25]} {[%emt
00:01:18]} c5 {[%clk 01:22:09]} {[%emt 00:04:05]} 10. dxc5 {[%clk 01:24:19]}
{[%emt 00:07:35]} Bxc5 {[%clk 01:22:34]} {[%emt 00:00:04]} 11. O-O {[%clk
01:24:07]} {[%emt 00:00:43]} Nc6 {[%clk 01:18:06]} {[%emt 00:04:58]} 12. b4
{[%clk 01:18:14]} {[%emt 00:06:23]} Bd6 {[%clk 01:16:07]} {[%emt 00:02:29]} 13.
Bb2 {[%clk 01:17:20]} {[%emt 00:01:24]} h5 {[%clk 01:06:59]} {[%emt 00:09:38]}
14. Rc1 {[%clk 00:56:38]} {[%emt 00:21:11]} Ne5 {[%clk 01:05:07]} {[%emt
00:02:23]} 15. Nxe5 {[%clk 00:51:58]} {[%emt 00:05:10]} Bxe5 {[%clk 01:05:22]}
{[%emt 00:00:14]} 16. Qe2 {[%clk 00:51:26]} {[%emt 00:01:03]} Bxh2+ {[%clk
01:04:14]} {[%emt 00:01:38]} 17. Kxh2 {[%clk 00:43:57]} {[%emt 00:07:59]} Ng4+
{[%clk 01:00:27]} {[%emt 00:04:17]} 18. Kh3 {[%clk 00:44:19]} {[%emt 00:00:09]}
f5 {[%clk 00:45:43]} {[%emt 00:15:13]} 19. Bxb5+ {[%clk 00:31:19]} {[%emt
00:13:30]} Kf7 {[%clk 00:43:13]} {[%emt 00:03:00]} 20. Rfd1 {[%clk 00:27:57]}
{[%emt 00:03:52]} Qb8 {[%clk 00:42:09]} {[%emt 00:01:34]} 21. Rd7+ {[%clk
00:24:20]} {[%emt 00:04:07]} Kg6 {[%clk 00:36:40]} {[%emt 00:05:57]} 22. f4
{[%clk 00:23:52]} {[%emt 00:00:59]} axb5 {[%clk 00:34:15]} {[%emt 00:02:55]} 23.
Nxb5 {[%clk 00:18:08]} {[%emt 00:06:14]} Nf6 {[%clk 00:33:07]} {[%emt
00:01:38]} 24. Bxf6 {[%clk 00:15:36]} {[%emt 00:03:03]} gxf6 {[%clk 00:32:51]}
{[%emt 00:00:45]} 25. Rcc7 {[%clk 00:11:33]} {[%emt 00:04:33]} Bd5 {[%clk
00:30:27]} {[%emt 00:02:54]} 26. Rg7+ {[%clk 00:09:36]} {[%emt 00:02:27]} Kh6
{[%clk 00:30:54]} {[%emt 00:00:03]} 27. Qb2 {[%clk 00:08:56]} {[%emt 00:01:11]}
Qf8 {[%clk 00:27:39]} {[%emt 00:03:45]} 28. Rgf7 {[%clk 00:06:56]} {[%emt
00:02:30]} Bxg2+ {[%clk 00:25:51]} {[%emt 00:02:19]} 29. Qxg2 {[%clk 00:06:12]}
{[%emt 00:01:13]} 1-0

[Event "Klubbmästerskap 2025 Torsdagar"]
[Site "Linköping, Sweden"]
[Date "2025.02.06"]
[Round "3.9"]
[White "Rogoz, Vladyslav"]
[Black "Thyberg, André"]
[Result "1-0"]
[TimeControl "90 min + 30 sec/move"]
[WhiteElo "2099"]
[BlackElo "1961"]

1. d4 {[%clk 01:27:04]} {[%emt 00:03:55]} Nf6 {[%clk 01:30:35]} {[%emt
00:00:25]} 2. c4 {[%clk 01:25:28]} {[%emt 00:02:07]} c5 {[%clk 01:30:57]}
{[%emt 00:00:09]} 3. d5 {[%clk 01:25:42]} {[%emt 00:00:16]} b5 {[%clk
01:31:18]} {[%emt 00:00:09]} 4. cxb5 {[%clk 01:25:57]} {[%emt 00:00:15]} a6
{[%clk 01:31:41]} {[%emt 00:00:07]} 5. e3 {[%clk 01:25:45]} {[%emt 00:00:42]}
axb5 {[%clk 01:32:03]} {[%emt 00:00:08]} 6. Bxb5 {[%clk 01:25:54]} {[%emt
00:00:21]} Qa5+ {[%clk 01:32:18]} {[%emt 00:00:14]} 7. Nc3 {[%clk 01:25:59]}
{[%emt 00:00:26]} Bb7 {[%clk 01:32:32]} {[%emt 00:00:16]} 8. Bd2 {[%clk
01:26:05]} {[%emt 00:00:24]} Qb6 {[%clk 01:32:45]} {[%emt 00:00:16]} 9. Nf3
{[%clk 01:24:28]} {[%emt 00:02:08]} Nxd5 {[%clk 01:32:50]} {[%emt 00:00:26]} 10.
a4 {[%clk 01:23:49]} {[%emt 00:01:09]} e6 {[%clk 01:32:25]} {[%emt 00:00:54]}
11. O-O {[%clk 01:23:34]} {[%emt 00:00:46]} Be7 {[%clk 01:32:41]} {[%emt
00:00:14]} 12. Ne5 {[%clk 01:23:43]} {[%emt 00:00:21]} O-O {[%clk 01:32:09]}
{[%emt 00:01:02]} 13. Nc4 {[%clk 01:22:11]} {[%emt 00:02:02]} Qc7 {[%clk
01:31:26]} {[%emt 00:01:13]} 14. a5 {[%clk 01:19:43]} {[%emt 00:02:59]} Na6
{[%clk 01:16:22]} {[%emt 00:15:35]} 15. Nxd5 {[%clk 01:17:23]} {[%emt
00:02:50]} exd5 {[%clk 01:15:50]} {[%emt 00:01:02]} 16. Nb6 {[%clk 01:17:32]}
{[%emt 00:00:21]} Ra7 {[%clk 01:14:43]} {[%emt 00:01:37]} 17. Bc3 {[%clk
01:17:14]} {[%emt 00:00:47]} Qd6 {[%clk 01:01:37]} {[%emt 00:13:36]} 18. Qg4
{[%clk 01:14:58]} {[%emt 00:02:46]} Qg6 {[%clk 01:00:47]} {[%emt 00:01:21]} 19.
Bxd7 {[%clk 01:14:51]} {[%emt 00:00:37]} Nb4 {[%clk 00:57:59]} {[%emt
00:03:18]} 20. Qxg6 {[%clk 01:08:52]} {[%emt 00:06:29]} hxg6 {[%clk 00:58:27]}
{[%emt 00:00:02]} 21. Bb5 {[%clk 01:07:05]} {[%emt 00:02:17]} Rd8 {[%emt
00:06:44]} 22. Rfd1 {[%clk 01:04:46]} Bf6 {[%clk 00:49:58]} {[%emt 00:05:33]}
23. a6 {[%clk 00:54:52]} {[%emt 00:10:25]} Bxa6 {[%clk 00:48:46]} {[%emt
00:01:42]} 24. Bxb4 {[%clk 00:54:35]} {[%emt 00:00:46]} cxb4 {[%clk 00:36:38]}
{[%emt 00:12:39]} 25. Rxd5 {[%clk 00:52:40]} {[%emt 00:02:24]} Rb7 {[%clk
00:25:15]} {[%emt 00:11:53]} 26. Nd7 {[%clk 00:48:30]} {[%emt 00:04:40]} Bxb2
{[%clk 00:23:26]} {[%emt 00:02:19]} 27. Rxa6 {[%clk 00:48:18]} {[%emt
00:00:41]} Rxb5 {[%clk 00:23:31]} {[%emt 00:00:26]} 28. Rxb5 {[%clk 00:48:08]}
{[%emt 00:00:40]} Rxd7 {[%clk 00:23:51]} {[%emt 00:00:10]} 29. Kf1 {[%clk
00:48:09]} {[%emt 00:00:29]} Bc3 {[%clk 00:24:12]} {[%emt 00:00:09]} 30. h4
{[%clk 00:46:02]} {[%emt 00:02:36]} f6 {[%clk 00:21:22]} {[%emt 00:03:22]} 31.
Ke2 {[%clk 00:44:47]} {[%emt 00:01:45]} Kh7 {[%clk 00:21:17]} {[%emt 00:00:35]}
32. Ra8 {[%clk 00:44:46]} {[%emt 00:00:30]} Rd2+ {[%clk 00:19:54]} {[%emt
00:01:53]} 33. Kf3 {[%clk 00:45:04]} {[%emt 00:00:13]} g5 {[%clk 00:18:00]}
{[%emt 00:02:24]} 34. h5 {[%clk 00:44:30]} {[%emt 00:01:03]} g4+ {[%clk
00:17:34]} {[%emt 00:00:56]} 35. Kxg4 {[%clk 00:44:49]} {[%emt 00:00:11]} Be5
{[%clk 00:15:17]} {[%emt 00:02:47]} 36. Kf3 {[%clk 00:44:23]} {[%emt 00:00:55]}
Kh6 {[%clk 00:12:35]} {[%emt 00:03:12]} 37. Rxb4 {[%clk 00:44:32]} {[%emt
00:00:23]} Kxh5 {[%clk 00:12:57]} {[%emt 00:00:07]} 38. Rg8 {[%clk 00:44:03]}
{[%emt 00:00:58]} g5 {[%clk 00:12:22]} {[%emt 00:01:06]} 39. Rb1 {[%clk
00:43:00]} {[%emt 00:01:33]} f5 {[%clk 00:11:33]} {[%emt 00:01:19]} 40. Rh1+
{[%clk 00:43:23]} {[%emt 00:00:07]} Bh2 {[%clk 00:11:54]} {[%emt 00:00:09]} 41.
Rxh2# {[%clk 00:43:49]} {[%emt 00:00:05]} 1-0